Cogmind - Beta 12 @@@ ROGUE MODE // 2023.03.23 @ 17:36:15 Player: ZLD1 Result: Destroyed by YI-UF0 with YI-UF0's Doublenader Performance ------------- Evolutions (0) 0 Regions Visited (2) 400 Robots Destroyed (2) 10 Value Destroyed (81) 81 Prototype IDs (1) 20 Alien Tech Used (0) 0 Bonus (0) 0 TOTAL SCORE: 511 Bonus ------- None Cogmind --------- Core Integrity 0/250 Matter 77/300 Energy 99/100 System Corruption 0% Temperature Cool (0) Movement Core (100) Ox1 Location -10/Mines Parts ------- > --- POWER (1) -------- (None) > --- PROPULSION (2) --- (None) > --- UTILITY (2) ------ Small Storage Unit > --- WEAPON (2) ------- (None) > --- INVENTORY (8) ---- Light Ion Engine Sensor Drone Bay (20/20) Datajack Peak State ------------ > --- POWER ------------ Ion Engine > --- PROPULSION ------- Aluminum Leg Aluminum Leg > --- UTILITY ---------- Small Storage Unit Sensor Drone Bay > --- WEAPON ----------- Medium Laser Medium Laser > --- INVENTORY -------- Light Ion Engine [Rating: 14] Favorites ----------- Power Ion Engine Engine Ion Engine Propulsion Aluminum Leg Leg Aluminum Leg Utility Small Storage Unit Device Sensor Drone Bay Storage Small Storage Unit Weapon Medium Laser Energy Gun Medium Laser Build | -11 -10 -10 ------- Run | Jun Mat Min Slots Evolved . | . . . Power . | . . . Propulsion . | . . . Utility . | . . . Weapon . | . . . Parts Attached 9 | 6 . 3 Power 1 | 1 . . Engine 1 | 1 . . Core . | . . . Reactor . | . . . Propulsion 2 | 2 . . Treads . | . . . Leg 2 | 2 . . Wheel . | . . . Hover . | . . . Flight . | . . . Utility 2 | 1 . 1 Device 1 | . . 1 Storage 1 | 1 . . Processor . | . . . Hackware . | . . . Protection . | . . . Artifact . | . . . Weapon 4 | 2 . 2 Energy Gun 4 | 2 . 2 Energy Cannon . | . . . Ballistic Gun . | . . . Ballistic Cannon . | . . . Launcher . | . . . Special Weapon . | . . . Impact Weapon . | . . . Slashing Weapon . | . . . Piercing Weapon . | . . . Special Melee Weapon . | . . . Unidentified Prototypes 1 | . . 1 Parts Lost 5 | . . 5 Power 1 | . . 1 Propulsion 2 | . . 2 Utility . | . . . Weapon 2 | . . 2 Highest Loss Streak 5 | . . 5 To Critical Strikes . | . . . Average Slot Usage (%) 89 | . 85 90 Engine 13 | . 14 13 Leg 27 | . 28 26 Device 6 | . . 8 Storage 14 | . 14 14 Energy Gun 27 | . 28 26 Naked Turns . | . . . Heaviest Build 28 | 14 14 28 Greatest Support 20 | 20 20 20 Greatest Overweight (x) 2 | . . 2 Average Overweight (x) . | . . . Largest Inventory Capacity 8 | 8 8 8 Average Capacity 7 | 6 8 8 Most Carried 4 | 4 1 3 Average Carried 1 | 1 1 1 Final Capacity 8 | 8 8 8 Final Carried 3 | 1 1 3 Class Distribution -------------------- 100% | Mutant Dominant Class ---------------- Mutant | -10/Materials Mutant | -10/Mines Resources | -11 -10 -10 ----------- Run | Jun Mat Min Matter Collected 42 | . . 42 Remotely . | . . . Salvage Created 76 | . . 76 Parts 4 | . . 4 Haulers Intercepted . | . . . Recyclers Shooed . | . . . Parts Field Recycled . | . . . Retrieved Matter . | . . . Parts Self-Destructed . | . . . Prevented . | . . . Kills | -11 -10 -10 ------- Run | Jun Mat Min Combat Hostiles Destroyed 2 | . . 2 Guns 2 | . . 2 Classes Destroyed 1 | . . 1 Grunt 2 | . . 2 Best Kill Streak 2 | . . 2 Combat Bots Only 2 | . . 2 Max Kills in Single Turn 1 | . . 1 Gunslinging . | . . . Exploded . | . . . Melee . | . . . Uniques/NPCs Destroyed . | . . . Combat | -11 -10 -10 -------- Run | Jun Mat Min Damage Taken 652 | . . 652 Core 250 | . . 250 Absorbed by Shields . | . . . Core Remaining (%) 100 | 100 . . Volleys Fired 12 | . 1 11 Largest 2 | . 2 2 Hottest 105 | . 100 105 Shots Fired 24 | . 2 22 Gun 24 | . 2 22 Cannon . | . . . Launcher . | . . . Special . | . . . Kinetic . | . . . Thermal 24 | . 2 22 Explosive . | . . . Electromagnetic . | . . . Robot Hit Streak 6 | . 1 6 Robot Miss Streak 5 | . 1 5 Penetration Max . | . . . Secondary Targets 1 | . . 1 Max Gunslinging Chain 1 | . . 1 Shots Hit Robots 14 | . 1 13 Core Hits 5 | . . 5 Critical Kills . | . . . Critical Parts Destroyed . | . . . Critical Strikes 1 | . . 1 Burn 1 | . . 1 Melee Attacks . | . . . Impact . | . . . Slashing . | . . . Piercing . | . . . Sneak Attacks . | . . . Combat Hostiles . | . . . Follow-up Attacks . | . . . Damage Inflicted 175 | . 13 162 Guns 175 | . 13 162 Cannons . | . . . Explosions . | . . . Melee . | . . . Ramming . | . . . Kinetic . | . . . Thermal 175 | . 13 162 Explosive . | . . . Electromagnetic . | . . . Impact . | . . . Slashing . | . . . Piercing . | . . . Highest Corruption . | . . . Average Corruption . | . . . Corruption Purged . | . . . Corruption Blocked . | . . . Overload Shots . | . . . Overflow Damage . | . . . Projectiles . | . . . Explosions . | . . . Melee . | . . . Knockbacks . | . . . Impact . | . . . Kinetic . | . . . Secondary . | . . . Self-Inflicted Damage . | . . . Shots . | . . . Rammed . | . . . Targets Rammed . | . . . Kicked . | . . . Crushed . | . . . Highest Temperature 501 | . 39 501 Average Temperature 223 | . 20 239 Received Heat Transfer 111 | . . 111 Effects 4 | . . 4 Energy Bleed 1 | . . 1 Damage (major) 3 | . . 3 Siege Activations . | . . . Robots Corrupted . | . . . Combat Hostiles . | . . . Parts Fried . | . . . Impact Corruptions . | . . . Robots Melted . | . . . Combat Hostiles . | . . . Parts Melted 3 | . . 3 Heat Transferred 592 | . 37 555 Parts Sabotaged . | . . . Parts Stolen . | . . . Parts Stripped . | . . . Power Chain Reactions . | . . . Missiles Intercepted . | . . . Alert | -11 -10 -10 ------- Run | Jun Mat Min Peak Influence 55 | . 15 55 Initial 5 | . . 5 Average 15 | . 9 19 Maximum Alert Level . | . . . Low Security (%) 100 | 100 100 100 Level 1 . | . . . Level 2 . | . . . Level 3 . | . . . Level 4 . | . . . Level 5 . | . . . High Security . | . . . Max Security . | . . . Squads Dispatched 1 | . 1 . Investigation . | . . . Extermination . | . . . Reinforcement 1 | . 1 . Assault . | . . . Garrison . | . . . Intercept . | . . . Searches Triggered . | . . . Construction Impeded . | . . . Haulers Reinforced . | . . . Active Scanning Responses . | . . . Cargo Convoy Interrupts . | . . . Stealth | -11 -10 -10 --------- Run | Jun Mat Min Distress Signals . | . . . Communications Jammed . | . . . Distress Signals . | . . . Times Spotted 4 | . 1 3 Peak Tracking Total 2 | . 2 2 Tactical Retreats . | . . . Traps | -11 -10 -10 ------- Run | Jun Mat Min Traps Triggered . | . . . Indirectly . | . . . Trap Hack Attempts . | . . . Triggered . | . . . Disarmed . | . . . Reprogrammed . | . . . Reused . | . . . Traps Extracted . | . . . Installed . | . . . Triggered . | . . . Machines | -11 -10 -10 ---------- Run | Jun Mat Min Machines Disabled . | . . . Max in Single Turn . | . . . Machines Repaired . | . . . Machines Sabotaged . | . . . Overloaded Fab Kills . | . . . Hacking | -11 -10 -10 --------- Run | Jun Mat Min Machines Accessed 2 | . 1 1 Terminals 1 | . 1 . Fabricators . | . . . Repair Stations . | . . . Recycling Units . | . . . Scanalyzers . | . . . Garrison Access . | . . . Total Hacks 2 | . 1 1 Successful 2 | . 1 1 Failed . | . . . Catastrophic . | . . . Database Lockouts . | . . . Manual . | . . . Terminals 1 | . 1 . Fabricators . | . . . Repair Stations . | . . . Recycling Units . | . . . Scanalyzers . | . . . Garrison Access . | . . . Terminal Hacks 2 | . 1 1 Record 1 | . 1 . Open Door 1 | . . 1 Fabricator Hacks . | . . . Repair Station Hacks . | . . . Recycling Unit Hacks . | . . . Scanalyzer . | . . . Garrison Access Hacks . | . . . Unauthorized Hacks . | . . . Terminals . | . . . Fabricators . | . . . Repair Stations . | . . . Recycling Units . | . . . Scanalyzers . | . . . Garrison Access . | . . . Data Cores Recovered . | . . . Used . | . . . Hacking Detections . | . . . Full Trace Events . | . . . Feedback Events . | . . . Feedback Blocked . | . . . Robot Schematics Acquired . | . . . Robots Built . | . . . Authchips . | . . . Time . | . . . Total Robot Build Rating . | . . . Part Schematics Acquired . | . . . Parts Built . | . . . Authchips . | . . . Time . | . . . Total Part Build Rating . | . . . Parts Repaired . | . . . Time . | . . . Parts Recycled . | . . . Recycled Matter . | . . . Retrieved Matter . | . . . Retrieved Components . | . . . Parts Scanalyzed . | . . . Part Schematics Acquired . | . . . Parts Damaged . | . . . Bothacking | -11 -10 -10 ------------ Run | Jun Mat Min Used RIF Installer . | . . . Robots Hacked . | . . . Non-combat . | . . . Combat . | . . . Robot Hacks Applied . | . . . Relay Couplers Released . | . . . Fabnet Peak Effective % . | . . . Robots Rewired . | . . . Allies Hacked . | . . . Hacks Repelled . | . . . Allies | -11 -10 -10 -------- Run | Jun Mat Min Total Allies . | . . . Largest Group . | . . . Highest-Rated Group . | . . . Highest-Rated Ally . | . . . Total Orders 2 | . . 2 EXPLORE 1 | . . 1 RETURN 1 | . . 1 Ally Attacks . | . . . Total Damage . | . . . Kills . | . . . Allies Corrupted . | . . . Allies Melted . | . . . Intel | -11 -10 -10 ------- Run | Jun Mat Min Robot Analysis Total . | . . . Derelict Logs Recovered . | . . . Drone Launches 20 | . . 20 Drone Recoveries 20 | . . 20 Exploration | -11 -10 -10 ------------- Run | Jun Mat Min Turns Passed 355 | 43 50 262 Spaces Moved 159 | 30 40 89 Core 16 | 8 . 8 Treads . | . . . Legs 143 | 22 40 81 Wheels . | . . . Hover . | . . . Flight . | . . . Fastest Speed 50 | 50 120 100 Average Speed 125 | 101 120 135 Slowest Speed 190 | 120 120 190 Overloaded Moves . | . . . Propulsion Burnouts . | . . . Robots Hopped . | . . . Cave-ins Triggered . | . . . Exploration Rate (%) 23 | 4 15 50 Regions Visited 2 Branch Regions 1 Pre-discovered Areas . | . . . Known Exits Taken . | . . . Unknown Exits Taken 2 | 1 1 . Scrap Searched . | . . . Spaces Dug . | . . . Terrain Destroyed . | . . . Melee . | . . . Projectile . | . . . AOE . | . . . Terrain Rammed . | . . . Walls Destroyed . | . . . Machines Disabled . | . . . Actions | -11 -10 -10 --------- Run | Jun Mat Min Total 292 | 42 40 210 Wait 100 | . . 100 Move 157 | 29 39 89 Hop . | . . . Pick Up 11 | 7 . 4 Fast Attach . | . . . Attach 9 | 6 . 3 Detach 1 | . . 1 Swap . | . . . Drop 2 | . . 2 Fire 12 | . 1 11 Melee . | . . . Ram . | . . . Kick . | . . . Crush . | . . . Escape Stasis . | . . . Rewire . | . . . Trap . | . . . Miscellaneous . | . . . Route ------- -11/Junkyard -10/Materials -10/Mines History --------- Turn | Location | Event 6 | -11/Junkyard | Discovered new exit (range 15) 44 | -11/Junkyard | Entered Materials 71 | -10/Materials | Discovered new exit (range 16) 94 | -10/Materials | Entered Mines 99 | -10/Mines | Found the Drone Emporium 104 | -10/Mines | Found Prototype Device 105 | -10/Mines | Identified Sensor Drone Bay 306 | -10/Mines | Build established: Mutant 353 | -10/Mines | Core integrity fell below 50% 355 | -10/Mines | Core integrity fell below 20% 356 | -10/Mines | Destroyed by YI-UF0 with YI-UF0's Doublenader Last Messages --------------- 00273_ G-34 Mercenary destroyed. 00276_ Overheating: Energy bleed (-47). 00276_ Acquired 42 matter. 00279_ Acquired Particle Gun. 00280_ Overheating: Sml. Storage Unit damaged (-58). 00280_ Overheating: Ion Engine damaged (-24). 00280_ Overheating: Med. Laser damaged (-24). 00281_ Dropped Med. Laser. 00284_ Acquired Sml. Laser. 00325_ The unstable cave ceiling collapses. 00329_ Acquired Datajack. 00338_ The unstable cave ceiling collapses. 00340_ Ion Engine destroyed. 00342_ YI-UF0 mumbles something. 00342_ Aluminum Leg destroyed. 00343_ The unstable cave ceiling collapses. 00344_ Aluminum Leg destroyed. 00348_ Sml. Laser destroyed. 00348_ Particle Gun destroyed. 00350_ The unstable cave ceiling collapses. Map ----- +----------------------------------------------------+ | | | | | | | | | | | | | | | | | | | | | | | | | | | | | | | | | | | | | | | | | | | ???????????#########????#####????????????????????? | | ??????????## ##### ####?????????????????? | | ##???????## ## ##### ##????????????????? | | #??????# # [ % #????????????????? | | ####??## @ #????????????????? | | #### #????????????????? | | #????????????????? | | ### #????????????????? | | ## # ##??### ######????????????????? | | ?# ####?????### # ###?##????????????????? | | ## #?????????# #????????????????????? | | #?????????# # # ##????????????#""#??? | | ## #?????????# g #?????????? X ?? | | ## #?????????# #?######### ?? | | ## #????????## ## = ## ? | | ## ##???????# # ## ? | | ?# #??????## #### ## * ## # | | # #????## #??## ### =%= ## # | | #???## ###### ## ## # | | ##???# ### # # | | ####????# #?# ##### ##### * # | | #????????## ##???????####????# ### # | | ??????????# #????????????????# #?# # | | ??????????# #????????????????# #?# # | | ??????????# #????????????????# #?### ############? | | ??????????# #????????????????# #???# #???????????? | | ??????????# ????????????????# #???# #???????????? | | ??????????###????????????????# #???# #???????????? | | ?????????????????????????????# #???# #???????????? | +----------------------------------------------------+ Best States ------------- Heat Dissipation 25 Energy Generation 10 Energy Capacity 250 Matter Stores 90 Matter Capacity 300 Sight Range 16 Terrain Scan Density 10 Evasion (%) 55 Item Schematics ----------------- None Robot Schematics ------------------ None Fabricated ------------ Nothing Alien Tech Used ----------------- None Achievements -------------- Release The Drones! Challenges ------------ None Game ------ Seed ZioniteGammaNeutralizer Manual? 0 Play Time 00:06:44 Cumulative 15.2 hours Start 2023.03.23 @ 17:30:22 End 2023.03.23 @ 17:36:15 Sessions 1 Manual Loads 0 Difficulty Rogue Special Mode None Game No. 36 Rogue 36 Adventurer 0 Explorer 0 Win Type - Total 0 Types 0/0/0/0/0/0/0/0/0 Lore% 17 Gallery% 24 Achievement% 17 Wizard Run 0 Options --------- ASCII 0 Keyboard 0 Movement Mouse Keybinds 0 Fullscreen 1 Font 24/Smallcaps Map View 64x52 Tactical HUD 1 Map Filters NONE Filters NONE Steam 1 RUN: d79f6e36-5f33-429f-a335-bf772f0ca070